bitfinex/quotes_SOLUSD_20250228
["timestamp","ask_amount","ask_price","bid_price","bid_amount"]
[1740750470771,3.2518,138.6,138.52,18.79181043]
[1740750471286,0.063,138.61,138.53,0.14216157]
[1740750471580,0.063,138.61,138.56,18.79181043]
[1740750471793,0.063,138.61,138.58,18.79181043]
[1740750472302,0.063,138.61,138.6,38.79181043]
[1740750473166,0.063,138.61,138.6,18.79181043]
[1740750473477,0.063,138.61,138.6,330.79181043]
[1740750473678,0.063,138.61,138.6,0.14216157]
[1740750474274,0.063,138.61,138.58,18.64964886]
[1740750474468,0.063,138.61,138.59,0.14216157]
[1740750475389,0.063,138.61,138.57,10.38]
[1740750475591,0.063,138.61,138.58,18.79181043]
[1740750476691,0.063,138.61,138.58,330.79181043]
[1740750476898,0.063,138.61,138.6,20.0]
[1740750477099,0.063,138.61,138.6,38.64964886]
[1740750477392,0.063,138.61,138.58,0.14216157]
[1740750477884,0.063,138.61,138.58,18.79181043]
[1740750478683,0.063,138.61,138.58,26.00751043]
[1740750478990,0.063,138.61,138.58,18.79181043]
[1740750479487,0.063,138.61,138.58,26.00781043]
[1740750481195,0.063,138.61,138.58,0.14216157]
[1740750481492,0.063,138.61,138.54,7.2177]
[1740750481692,0.063,138.61,138.55,18.64964886]
[1740750481875,0.063,138.61,138.56,0.14216157]
[1740750482396,0.063,138.61,138.54,7.2177]
[1740750482694,0.063,138.61,138.55,0.14216157]
[1740750482998,0.063,138.61,138.55,18.79181043]
[1740750483480,0.063,138.61,138.53,121.56]
[1740750483679,9.1265,138.6,138.53,121.56]
[1740750483895,1.63443829,138.59,138.53,121.56]
[1740750484479,1.63443829,138.59,138.58,0.03]
[1740750484795,8.84993829,138.59,138.58,0.03]
[1740750488984,16.3415,138.6,138.58,0.03]
[1740750489895,1.63443829,138.59,138.58,0.03]
[1740750490278,9.1265,138.6,138.58,0.03]
[1740750490585,16.3415,138.6,138.58,0.03]
[1740750490895,1.63443829,138.59,138.58,0.03]
[1740750491081,8.84993829,138.59,138.58,0.03]
[1740750492901,8.84993829,138.59,138.45,121.56]
[1740750492902,0.14216157,138.58,138.45,121.56]
[1740750493083,18.79181043,138.56,138.45,128.7826]
[1740750493399,1.63443829,138.55,138.45,128.7826]
[1740750493788,15.671162,138.55,138.45,121.56]
[1740750493983,22.08121043,138.52,138.44,0.03]
[1740750494287,22.08121043,138.52,138.37,121.56]
[1740750494288,18.64964886,138.47,138.37,121.56]
[1740750494486,18.64964886,138.45,138.33,10.34]
[1740750494796,11.18730176,138.49,138.42,18.79181043]
[1740750494797,6.5307,138.49,138.42,18.79181043]
[1740750495113,6.5307,138.49,138.44,0.14216157]
[1740750495399,3.2894,138.52,138.44,18.64964886]
[1740750495609,4.92383829,138.52,138.46,20.0]
[1740750495812,6.5307,138.53,138.47,0.14216157]
[1740750496013,6.5307,138.53,138.5,312.0]
[1740750497211,9.6223,138.57,138.51,0.14216157]
[1740750498100,1.63443829,138.56,138.44,18.0876]
[1740750498296,20.0,138.52,138.44,10.37]
[1740750498491,1.63443829,138.51,138.44,10.37]
[1740750498919,1.63443829,138.54,138.45,18.79181043]
[1740750499214,20.0,138.52,138.44,10.37]
[1740750499505,1.63443829,138.51,138.44,10.37]
[1740750500104,1.63443829,138.51,138.44,17.5932]
[1740750500289,1.63443829,138.51,138.46,312.0]
[1740750500809,18.64964886,138.5,138.44,0.03]
[1740750500998,7.2212,138.48,138.44,0.03]
[1740750501205,1.63443829,138.47,138.44,0.03]
[1740750502102,1.63443829,138.48,138.44,0.03]
[1740750502306,6.577,138.49,138.44,0.03]
[1740750503013,6.577,138.49,138.44,0.17216157]
[1740750503913,6.577,138.49,138.45,312.0]
[1740750504300,6.577,138.49,138.44,0.17216157]
[1740750504996,6.577,138.49,138.45,7.2228]
[1740750505197,1.63443829,138.48,138.44,0.03]
[1740750505527,1.63443829,138.51,138.44,25.3112]
[1740750506316,1.63443829,138.51,138.44,7.2529]
[1740750506495,20.0,138.49,138.44,0.03]
[1740750506695,1.63443829,138.48,138.44,0.03]
[1740750506901,3.1422,138.47,138.44,0.03]
[1740750507108,20.0,138.42,138.34,25.2999]
[1740750507304,21.63443829,138.41,138.36,312.0]
[1740750508710,28.85943829,138.41,138.36,312.0]
[1740750509311,1.63443829,138.41,138.36,312.0]
[1740750509505,8.85873829,138.42,138.36,312.0]
[1740750509819,1.63443829,138.42,138.34,7.2285]
[1740750510330,8.85903829,138.42,138.34,7.2285]
[1740750510826,1.63443829,138.43,138.35,0.14216157]
[1740750511027,1.63443829,138.43,138.35,18.79181043]
[1740750511223,6.3943,138.44,138.39,0.14216157]
[1740750511523,6.1656,138.49,138.41,0.14216157]
[1740750511926,6.1656,138.49,138.43,20.0]
[1740750512228,0.063,138.52,138.47,20.0]
[1740750512524,0.063,138.52,138.49,0.14216157]
[1740750512730,0.063,138.52,138.51,312.0]
[1740750513510,0.063,138.52,138.51,330.79181043]
[1740750514230,10.9376504,138.58,138.55,0.14216157]
[1740750514427,10.9376504,138.58,138.55,17.5371]
[1740750514830,10.9376504,138.58,138.55,10.32]
[1740750515020,0.063,138.61,138.56,0.14216157]
[1740750515215,0.063,138.61,138.56,20.14216157]
[1740750515816,0.063,138.61,138.56,20.0]
[1740750516019,8.91213829,138.61,138.55,10.32]
[1740750516432,20.0,138.57,138.49,10.32]
[1740750516735,1.63443829,138.56,138.49,10.32]
[1740750517431,24.94164886,138.55,138.49,322.32]
[1740750517731,1.63443829,138.54,138.49,312.0]
[1740750518137,18.64964886,138.53,138.49,312.0]
[1740750518432,28.94164886,138.55,138.44,131.98]
[1740750518433,1.63443829,138.52,138.44,131.98]
[1740750518629,26.89783829,138.54,138.44,131.98]
[1740750518827,18.64964886,138.53,138.44,131.98]
[1740750519033,1.63443829,138.52,138.44,131.98]
[1740750519454,1.63443829,138.53,138.45,18.79181043]
[1740750519745,1.63443829,138.53,138.48,20.0]
[1740750519921,1.63443829,138.54,138.48,20.0]
[1740750520122,1.63443829,138.54,138.45,18.79181043]
[1740750520543,12.84226164,138.55,138.45,18.79181043]
[1740750520713,7.2169,138.57,138.49,0.14216157]
[1740750520914,7.2169,138.57,138.5,10.32]
[1740750521333,10.3993,138.58,138.54,312.0]
[1740750521523,28.4394,138.58,138.54,312.0]
[1740750521726,20.0,138.54,138.46,0.14216157]
[1740750522051,20.0,138.55,138.46,18.79181043]
[1740750522349,20.0,138.55,138.47,20.0]
[1740750522639,20.0,138.53,138.46,10.32]
[1740750522839,20.0,138.51,138.44,121.66]
[1740750523145,25.2634,138.54,138.45,0.14216157]
[1740750524114,7.2181,138.54,138.45,18.79181043]
[1740750524315,7.2177,138.55,138.45,18.79181043]
[1740750524535,7.2177,138.55,138.47,20.0]
[1740750524734,7.2177,138.55,138.49,312.0]
[1740750525238,13.3859,138.56,138.47,20.0]
[1740750526117,13.3859,138.56,138.45,7.36496157]
[1740750526827,6.1687,138.56,138.48,20.0]
[1740750527015,13.3858,138.56,138.49,10.32]
[1740750528259,6.1687,138.56,138.5,312.0]
[1740750528750,20.1002,138.61,138.5,312.0]
[1740750528751,6.3717,138.61,138.52,0.14216157]
[1740750528960,7.215,138.6,138.52,0.14216157]
[1740750529737,7.215,138.6,138.49,10.32]
[1740750529918,20.79181043,138.59,138.49,10.32]
[1740750530119,20.0,138.56,138.48,7.2212]
[1740750530519,20.0,138.56,138.47,7.36376157]
[1740750531241,27.2173,138.56,138.47,7.36376157]
[1740750531446,20.0,138.56,138.47,7.36376157]
[1740750531621,27.2171,138.56,138.47,7.36376157]
[1740750531825,20.0,138.52,138.5,312.0]
[1740750532124,22.0,138.48,138.35,7.228]
[1740750532332,0.14216157,138.47,138.35,7.228]
[1740750532536,20.0,138.43,138.32,7.2296]
[1740750532947,27.2243,138.43,138.33,26.02081043]
[1740750533143,27.2243,138.43,138.33,18.82181043]
[1740750533336,27.2243,138.43,138.33,26.05081043]
[1740750533734,27.2243,138.43,138.33,25.90864886]
[1740750534138,18.79181043,138.42,138.33,0.03]
[1740750534345,0.14216157,138.39,138.33,0.03]
[1740750534850,18.79181043,138.37,138.33,0.03]
[1740750535032,7.2275,138.36,138.33,0.03]
[1740750535746,18.79181043,138.32,138.31,0.03]
[1740750535929,0.14216157,138.31,138.3,0.03]
[1740750536530,20.0,138.27,138.2,0.03]
[1740750537050,27.2325,138.27,138.2,0.03]
[1740750537254,20.0,138.27,138.2,0.03]
[1740750537929,18.64964886,138.26,138.2,0.03]
[1740750538353,20.0,138.27,138.2,0.03]
[1740750538849,20.0,138.25,138.2,312.03]
[1740750539452,0.14216157,138.23,138.2,0.03]
[1740750539635,2.14216157,138.23,138.2,0.03]
[1740750539829,2.14216157,138.21,138.09,10.9376504]
[1740750540031,0.14216157,138.21,138.09,10.9376504]
[1740750540557,0.14216157,138.23,138.1,18.79181043]
[1740750540850,10.3,138.27,138.17,20.0]
[1740750541048,4.0,138.25,138.15,10.3]
[1740750541249,0.14216157,138.26,138.14,0.14216157]
[1740750541434,17.5322,138.27,138.14,18.79181043]
[1740750541951,6.3628,138.3,138.18,18.79181043]
[1740750542142,6.3628,138.3,138.21,20.0]
[1740750542336,17.5935,138.3,138.19,10.3]
[1740750542537,18.64964886,138.29,138.22,312.0]
[1740750542940,11.2317,138.28,138.22,312.0]
[1740750543133,18.79181043,138.23,138.11,10.3]
[1740750543352,20.0,138.2,138.11,10.3]
[1740750544255,20.0,138.2,138.12,0.14216157]
[1740750544645,20.0,138.2,138.11,10.3]
[1740750544845,20.0,138.2,138.12,0.14216157]
[1740750545150,17.5334,138.25,138.16,0.14216157]
[1740750545355,7.2334,138.25,138.16,0.14216157]
[1740750545754,18.64964886,138.27,138.16,18.79181043]
[1740750545952,8.46756505,138.28,138.16,18.79181043]
[1740750546151,16.6628,138.3,138.22,312.0]
[1740750546329,13.5936,138.3,138.22,312.0]
[1740750546536,13.5936,138.3,138.18,0.14216157]
[1740750546743,13.5936,138.3,138.23,0.14216157]
[1740750546744,6.3628,138.3,138.23,0.14216157]
[1740750546952,6.3628,138.3,138.23,18.79181043]
[1740750547155,6.0915,138.35,138.25,18.79181043]
[1740750547554,6.0915,138.35,138.25,0.14216157]
[1740750548432,6.0915,138.35,138.25,26.02481043]
[1740750548752,6.0915,138.35,138.29,0.14216157]
[1740750548955,6.0915,138.35,138.29,18.79181043]
[1740750549146,0.063,138.35,138.31,0.14216157]
[1740750549339,0.063,138.35,138.3,10.3]
[1740750549544,0.063,138.35,138.34,312.0]
[1740750550336,7.291,138.35,138.23,7.2343]
[1740750550536,0.063,138.35,138.24,1.51856723]
[1740750550736,0.20516157,138.35,138.23,18.64964886]
[1740750550944,22.85481043,138.35,138.21,10.3]
[1740750551152,0.14216157,138.29,138.21,10.3]
[1740750552044,0.14216157,138.26,138.18,121.82]
[1740750552244,0.14216157,138.26,138.16,10.3]
[1740750552454,0.14216157,138.23,138.11,10.3]
[1740750552755,25.3181,138.24,138.13,20.0]
[1740750552956,4.0,138.22,138.09,132.15]
[1740750553139,0.14216157,138.19,138.09,121.85]
[1740750553337,0.14216157,138.19,138.14,312.0]
[1740750553555,0.14216157,138.19,138.09,121.85]
[1740750553556,18.79181043,138.17,138.09,121.85]
[1740750554367,20.0,138.14,138.09,121.85]
[1740750554744,20.0,138.14,138.09,0.03]
[1740750555061,20.0,138.12,138.09,0.03]
[1740750556145,18.64964886,138.11,138.09,0.03]
[1740750556360,20.0,138.08,138.06,0.03]
[1740750556671,20.0,138.07,138.06,0.03]
[1740750558047,25.89024886,138.11,138.06,0.03]
[1740750558246,10.4293,138.13,138.06,0.03]
[1740750558552,18.64964886,138.12,138.06,0.03]
[1740750558951,18.64964886,138.12,138.09,0.03]
[1740750559755,25.88974886,138.12,138.09,0.03]
[1740750561046,3.1897,138.13,138.09,0.03]
[1740750561564,18.64964886,138.13,138.09,0.03]
[1740750561770,6.2275,138.15,138.09,0.03]
[1740750562667,20.0,138.17,138.09,0.03]
[1740750562875,16.8405,138.2,138.1,10.3]
[1740750562876,13.7764,138.2,138.1,10.3]
[1740750563173,20.0,138.17,138.1,10.3]
[1740750563373,6.5405,138.2,138.11,18.79181043]
[1740750563849,0.063,138.21,138.17,312.0]
[1740750564265,20.063,138.21,138.12,0.14216157]
[1740750564562,20.0,138.2,138.12,0.14216157]
[1740750565166,20.0,138.2,138.14,0.14216157]
[1740750565369,0.063,138.21,138.17,20.0]
[1740750565672,0.063,138.21,138.18,0.14216157]
[1740750565862,0.063,138.21,138.17,10.3]
[1740750566757,26.09061043,138.21,138.1,10.3]
[1740750567065,7.2988,138.21,138.11,18.79181043]
[1740750567256,0.063,138.21,138.16,312.0]
[1740750567752,0.063,138.21,138.14,20.0]
[1740750567958,0.063,138.21,138.1,17.541]
[1740750567959,0.063,138.21,138.17,0.14216157]
[1740750568261,0.063,138.21,138.16,20.0]
[1740750568262,0.063,138.21,138.16,10.3]
[1740750568452,7.2986,138.21,138.11,0.14216157]
[1740750568769,20.0,138.19,138.12,10.3]
[1740750568970,0.063,138.21,138.13,18.64964886]
[1740750569172,0.063,138.21,138.16,0.14216157]
[1740750570465,0.063,138.21,138.18,20.0]
[1740750570656,0.063,138.21,138.19,0.14216157]
[1740750570860,0.063,138.21,138.2,312.0]
[1740750572564,0.063,138.21,138.2,319.2358]
[1740750572782,0.063,138.21,138.2,312.0]
[1740750574066,0.063,138.21,138.2,319.2358]
[1740750574266,0.063,138.21,138.2,319.37796157]
[1740750574484,0.063,138.21,138.2,338.02761043]
[1740750574979,0.0001,138.21,138.2,338.02761043]
[1740750575176,0.0001,138.21,138.2,342.02761043]
[1740750576178,6.4299,138.35,138.25,18.79181043]
[1740750576385,0.063,138.35,138.28,0.14216157]
[1740750577164,0.063,138.35,138.29,7.2311]
[1740750577566,0.063,138.35,138.3,0.14216157]
[1740750578396,20.0,138.33,138.27,0.14216157]
[1740750578776,0.063,138.35,138.27,18.79181043]
[1740750579294,0.063,138.35,138.3,0.14216157]
[1740750579498,0.063,138.35,138.34,312.0]
[1740750581177,0.063,138.35,138.28,18.64964886]
[1740750581178,20.063,138.35,138.26,132.14]
[1740750581385,45.3611,138.35,138.26,132.14]
[1740750581575,20.063,138.35,138.26,139.3726]
[1740750581778,0.063,138.35,138.27,18.79181043]
[1740750582075,27.2911,138.35,138.26,139.3726]
[1740750582271,27.2911,138.35,138.27,18.64964886]
[1740750582488,20.0,138.32,138.26,132.14]
[1740750582982,20.0,138.32,138.27,0.14216157]
[1740750583185,0.063,138.35,138.29,18.79181043]
[1740750584092,0.063,138.35,138.29,20.30977913]
[1740750584269,0.063,138.35,138.34,312.0]
[1740750584671,20.063,138.35,138.34,312.0]
[1740750585263,0.063,138.35,138.34,312.0]
[1740750585788,27.291,138.35,138.34,312.0]
[1740750586092,27.291,138.35,138.27,10.26]
[1740750586384,20.0,138.31,138.27,10.26]
[1740750586686,20.0,138.31,138.26,121.86]
[1740750586876,20.0,138.32,138.26,121.86]
[1740750587083,20.0,138.32,138.26,129.0927]
[1740750587273,20.0,138.3,138.26,121.86]
[1740750587588,0.063,138.35,138.27,0.14216157]
[1740750588086,20.0,138.33,138.27,0.14216157]
[1740750588978,27.291,138.35,138.32,312.0]
[1740750590185,20.0,138.33,138.27,7.37436157]
[1740750590484,0.063,138.35,138.29,0.14216157]
[1740750591189,20.063,138.35,138.27,25.3127]
[1740750591387,7.2911,138.35,138.27,7.2322]
[1740750591980,7.2911,138.35,138.26,129.0925]
[1740750592494,18.64964886,138.32,138.21,7.2353]
[1740750592792,18.64964886,138.32,138.22,10.26]
[1740750593173,18.64964886,138.32,138.3,312.0]
[1740750593377,25.3054,138.31,138.21,7.37746157]
[1740750594080,7.2301,138.31,138.21,7.37746157]
[1740750594789,7.2301,138.31,138.21,7.40746157]
[1740750595107,20.0,138.28,138.21,7.40746157]
[1740750595308,20.0,138.24,138.21,0.03]
[1740750596295,20.0,138.24,138.23,312.0]
[1740750597078,7.2322,138.27,138.23,312.0]
[1740750597283,7.37536157,138.25,138.09,0.03]
[1740750597593,20.0,138.2,138.11,20.0]
[1740750597770,20.0,138.2,138.12,0.14216157]
[1740750598172,20.0,138.2,138.09,18.67964886]
[1740750598402,20.0,138.2,138.09,20.19967084]
[1740750598575,25.45846157,138.25,138.1,4.0]
[1740750598776,25.45846157,138.25,138.14,0.14216157]
[1740750598975,0.14216157,138.23,138.14,10.26]
[1740750599393,7.2348,138.22,138.14,10.26]
[1740750599694,0.14216157,138.2,138.09,0.03]
[1740750599900,2.14216157,138.2,138.09,0.03]
[1740750600201,18.64964886,138.21,138.12,312.0]
[1740750600681,18.64964886,138.21,138.1,18.79181043]
[1740750601204,18.64964886,138.21,138.09,0.03]
[1740750601205,0.14216157,138.2,138.09,0.03]
[1740750601405,0.14216157,138.17,138.09,0.03]
[1740750601577,18.79181043,138.17,138.09,0.03]
[1740750601783,18.79181043,138.15,138.09,0.03]
[1740750602196,20.0,138.12,138.09,0.03]
[1740750602584,6.1052,138.11,138.09,0.03]
[1740750602995,13.346,138.11,138.09,0.03]
[1740750603514,6.1052,138.11,138.09,0.03]
[1740750603701,13.3459,138.11,138.09,0.03]
[1740750603876,6.1052,138.11,138.09,0.03]
[1740750604685,6.2429,138.15,138.09,0.03]
[1740750604881,6.2429,138.15,138.09,18.67964886]
[1740750605084,125.0963,138.21,138.13,0.14216157]
[1740750605085,3.2563,138.21,138.13,0.14216157]
[1740750605400,3.2563,138.21,138.13,18.79181043]
[1740750605601,20.0,138.18,138.09,0.03]
[1740750605782,10.4917,138.21,138.09,0.17216157]
[1740750606097,20.0,138.18,138.09,18.82181043]
[1740750606300,10.4917,138.21,138.09,18.82181043]
[1740750606537,20.64964886,138.2,138.09,0.03]
[1740750606685,20.0,138.13,138.09,0.03]
[1740750607102,0.14216157,138.08,138.06,0.03]
[1740750607309,38.79181043,138.08,138.06,0.03]
[1740750607483,20.0,138.08,138.06,0.03]
[1740750607680,20.0,138.09,138.06,0.03]
[1740750607908,18.64964886,138.08,138.06,0.03]
[1740750608727,20.0,138.09,138.06,0.03]
[1740750608905,0.14216157,138.08,138.06,0.03]
[1740750609106,7.2427,138.07,138.06,0.03]
[1740750609329,20.0,138.08,138.06,0.03]
[1740750611103,7.2427,138.07,138.06,0.03]
[1740750611932,26.03451043,138.07,138.06,0.03]
[1740750612111,20.0,138.04,138.03,312.03]
[1740750612731,20.0,138.04,138.03,0.03]
[1740750613226,27.2442,138.04,138.03,0.03]
[1740750613829,20.0,138.04,138.03,0.03]
[1740750614405,27.2442,138.04,138.03,0.03]
[1740750614842,25.3447,138.1,138.03,0.03]
[1740750615137,18.1036,138.1,138.03,0.03]
[1740750615336,18.79181043,138.09,138.03,0.03]
[1740750615536,18.79181043,138.07,138.03,0.03]
[1740750616132,0.14216157,138.08,138.03,0.03]
[1740750616335,18.79181043,138.08,138.03,0.03]
[1740750616538,20.79181043,138.08,138.03,0.03]
[1740750617033,20.79181043,138.08,138.03,0.0001]
[1740750617339,0.14216157,138.01,137.97,0.03]
[1740750617723,18.64964886,138.0,137.97,0.03]
[1740750618434,20.0,137.98,137.97,0.03]
[1740750619020,6.4287,138.03,137.97,0.03]
[1740750619221,7.2453,138.02,137.98,312.0]
[1740750619422,20.0,137.99,137.98,312.0]
[1740750619637,20.0,137.99,137.97,0.03]
[1740750620644,7.2442,138.04,137.97,0.03]
[1740750621139,18.1101,138.05,137.97,0.03]
[1740750621341,25.3512,138.06,137.97,18.67964886]
[1740750621843,7.2432,138.06,137.97,18.67964886]
[1740750622744,7.2423,138.08,138.02,312.0]
[1740750623123,27.2442,138.05,138.02,312.0]
[1740750623333,27.2442,138.05,137.97,0.03]
[1740750623524,45.3535,138.05,137.97,0.03]
[1740750624126,20.0,138.01,137.97,0.03]
[1740750625142,7.2463,138.0,137.97,0.03]
[1740750625347,20.0,137.98,137.97,0.03]
[1740750626423,20.0,137.98,137.97,0.0001]
[1740750627332,27.2474,137.98,137.97,0.0001]
[1740750629438,27.2474,137.98,137.97,312.0001]
[1740750629752,27.2474,137.98,137.97,0.0001]
[1740750632925,7.2474,137.98,137.97,0.0001]
[1740750633653,0.14216157,137.97,137.96,0.0001]
[1740750633957,0.14216157,138.0,137.96,0.0001]
[1740750634250,18.79181043,138.0,137.96,0.0001]
[1740750634446,0.14216157,137.97,137.95,0.0001]
[1740750634950,0.14216157,138.0,137.95,0.0001]
[1740750635346,97.8189,138.01,137.95,0.0001]
[1740750635651,25.3605,138.01,137.95,0.0001]
[1740750636152,25.3605,138.01,137.97,312.0]
[1740750636454,7.2432,138.06,137.97,312.0]
[1740750636656,18.1094,138.05,137.95,0.0001]
[1740750636859,7.2432,138.06,137.95,18.79191043]
[1740750637549,0.063,138.09,137.95,22.79191043]
[1740750637751,20.0,138.07,137.99,18.64964886]
[1740750637960,7.3046,138.09,138.01,18.79181043]
[1740750638133,0.063,138.09,138.01,18.79181043]
[1740750638859,0.063,138.09,138.03,25.26141043]
[1740750639669,0.063,138.09,138.08,312.0]
[1740750639859,0.063,138.09,138.03,6.4696]
[1740750640160,0.063,138.09,138.02,3.2832]
[1740750640535,0.063,138.09,138.03,18.79181043]
[1740750640957,0.063,138.09,138.02,3.2832]
[1740750641346,0.063,138.09,138.01,10.24]
[1740750642733,0.063,138.09,137.98,128.2216]
[1740750642953,18.85481043,138.09,137.98,132.34]
[1740750643157,2.0,138.08,137.98,132.34]
[1740750643655,25.3512,138.06,137.98,132.34]
[1740750644154,7.2432,138.06,137.98,132.34]
[1740750645150,7.2432,138.06,137.99,18.79181043]
[1740750645447,0.063,138.09,137.99,20.79181043]
[1740750645653,0.063,138.09,138.01,22.79181043]
[1740750645953,0.063,138.09,138.08,312.0]
[1740750649078,0.063,138.09,138.06,10.22]
[1740750649941,0.063,138.09,137.98,122.1]
[1740750650463,0.063,138.09,137.98,132.32]
[1740750650961,25.4087,138.09,137.98,132.32]
[1740750651256,20.0,138.06,137.98,132.32]
[1740750652048,20.0,138.06,137.98,122.1]
[1740750652357,20.0,138.02,137.95,0.0001]
[1740750652560,20.0,138.02,137.96,7.2484]
[1740750652739,6.5062,138.05,137.95,0.0001]
[1740750652937,7.2442,138.04,137.95,0.0001]
[1740750653771,7.2432,138.06,137.97,0.17216157]
[1740750654357,20.0,138.03,137.97,0.03]
[1740750654960,6.4822,138.01,137.97,0.03]
[1740750656968,25.3622,138.0,137.97,0.03]
[1740750659067,27.2474,137.98,137.97,0.0001]
[1740750659360,27.2474,137.98,137.96,0.0001]
[1740750663763,3.2308,137.96,137.95,0.0001]
[1740750663970,3.2308,137.96,137.8,124.08]
[1740750664169,0.14216157,137.94,137.81,10.2]
[1740750664544,20.79181043,137.92,137.77,1.52303041]
[1740750664740,18.79181043,137.9,137.75,4.0]
[1740750665166,61.6431,137.89,137.81,312.0]
[1740750665667,20.0,137.86,137.77,18.64964886]
[1740750665961,25.3824,137.89,137.79,18.64964886]
[1740750666164,7.2521,137.89,137.81,18.64964886]
[1740750666479,7.2511,137.91,137.82,2.14216157]
[1740750666647,7.2511,137.91,137.82,0.14216157]
[1740750666847,7.2511,137.91,137.81,0.14216157]
[1740750667043,7.2532,137.87,137.77,7.2584]
[1740750667351,7.2532,137.87,137.79,10.2]
[1740750667744,25.3862,137.87,137.79,10.2]
[1740750668154,7.2532,137.87,137.81,0.03]
[1740750668548,7.2532,137.87,137.83,312.0]
[1740750668746,25.3862,137.87,137.83,312.0]
[1740750669061,25.3862,137.87,137.81,0.03]
[1740750669246,80.43051043,137.9,137.81,0.03]
[1740750669947,116.68861043,137.9,137.81,0.03]
[1740750670151,18.79181043,137.87,137.81,0.03]
[1740750670558,18.79181043,137.87,137.72,134.63]
[1740750670559,20.79181043,137.87,137.72,122.08]
[1740750670774,38.25938474,137.87,137.72,129.341]
[1740750671071,36.25938474,137.87,137.73,18.64964886]
[1740750671365,25.388,137.86,137.73,18.64964886]
[1740750671586,18.79181043,137.85,137.72,122.08]
[1740750671863,35.75754143,137.85,137.72,122.08]
[1740750672068,35.75754143,137.85,137.75,312.0]
[1740750672069,37.45937548,137.85,137.75,312.0]
[1740750672247,0.14216157,137.84,137.75,312.0]
[1740750672448,0.14216157,137.82,137.75,312.0]
[1740750672760,20.0,137.78,137.67,0.03]
[1740750673270,25.4045,137.77,137.67,0.03]
[1740750673478,7.2584,137.77,137.69,20.0]
[1740750673685,7.2568,137.8,137.7,18.64964886]
[1740750673975,7.2568,137.8,137.71,2.14216157]
[1740750674183,7.2568,137.8,137.72,10.2]
[1740750674375,20.0,137.77,137.67,10.23]
[1740750675363,7.259,137.76,137.67,0.03]
[1740750675571,25.4065,137.76,137.72,312.0]
[1740750675767,26.0201,137.73,137.67,0.03]
[1740750676067,3.1777,137.72,137.67,0.03]
[1740750676450,18.79181043,137.71,137.67,0.03]
[1740750676675,3.1777,137.72,137.67,0.03]
[1740750676974,12.17770926,137.72,137.67,0.03]
[1740750677467,25.4156,137.71,137.67,0.03]
[1740750678754,7.2616,137.71,137.67,0.03]
[1740750679154,6.0201,137.73,137.67,0.03]
[1740750679155,7.2612,137.72,137.67,0.03]
[1740750680256,46.31722317,137.78,137.67,0.03]
[1740750680257,6.3576,137.81,137.71,0.14216157]
[1740750680459,6.3576,137.81,137.77,312.0]
[1740750681253,7.2574,137.79,137.68,7.2632]
[1740750681559,6.3576,137.81,137.7,20.0]
[1740750681758,13.614,137.81,137.69,20.79181043]
[1740750681959,6.3576,137.81,137.72,0.14216157]
[1740750682179,6.3576,137.81,137.74,0.14216157]
[1740750682368,3.2866,137.84,137.74,20.79181043]